[Event "44th Chess Olympiad Open 2022"]
[Site "Chennai"]
[Date "2022.08.02"]
[Round "5.32"]
[White "Yan, Austin K"]
[Black "Andersen, Mads"]
[Result "0-1"]
[WhiteElo "1568"]
[BlackElo "2587"]
[Annotator "TA"]
[PlyCount "72"]
[EventDate "2022.??.??"]
[TimeControl "60"]

{[%evp 11,72,0,20,0,13,0,0,0,0,0,0,0,-14,-15,-18,-41,-10,-10,4,6,7,-8,0,0,22,
25,27,20,15,0,0,0,0,0,0,0,0,0,0,-54,-26,-59,-53,-52,-45,-58,-56,-60,-64,-72,
-65,-375,-371,-682,-634,-983,-971,-910,-987,-1216,-1198,-1054,-997]} 1. e4 {
[%emt 0:00:03]} e5 {[%emt 0:00:08]} 2. Nf3 {[%emt 0:00:05]} Nc6 {[%emt 0:00:07]
} 3. Bc4 {[%emt 0:00:16]} Nf6 {[%emt 0:00:19]} 4. d3 {[%emt 0:00:20]} Bc5 {
[%emt 0:00:14]} 5. c3 {[%emt 0:00:12]} a6 {[%emt 0:00:28]} 6. Bb3 {[%emt 0:00:
00]} Ba7 {[%emt 0:01:44]} 7. h3 {[%emt 0:03:32] C54: Giuoco Piano: 4 c3 Nf6,
main lines with 5 d4 and 5 d3.} d5 {[%emt 0:05:31]} 8. Qe2 {[%emt 0:01:43]} (8.
exd5 {seems wilder.} Nxd5 9. O-O O-O 10. Qe2) 8... dxe4 {[%emt 0:01:47]} 9.
dxe4 {[%emt 0:00:08] The position is equal.} Qe7 {[%emt 0:00:12]} 10. Nbd2 {
[%emt 0:04:39]} Be6 {[%emt 0:06:01]} 11. Bc2 {[%emt 0:12:14]} O-O-O {[%emt 0:
00:00] [#]} 12. Nf1 $146 {[%emt 0:09:53]} ({Predecessor:} 12. Nc4 Qc5 13. Na3
Nh5 14. g3 f6 15. Be3 Qe7 16. Bxa7 Nxa7 17. Nc4 Kb8 18. h4 {1-0 (73) Kahl,F 
(2338)-Wittal,W (2016) LSS email 2016}) 12... Nh5 {[%emt 0:07:46]} 13. g3 $1 {
[%emt 0:03:04] Inhibits Nf4.} f6 {[%emt 0:03:47]} 14. Be3 {[%emt 0:08:54]} Qf7
{[%emt 0:25:05] [#] Threatens to win with ...Bc4.} 15. Bxa7 {[%emt 0:10:07]}
Nxa7 {[%emt 0:00:02]} 16. Ne3 {[%emt 0:00:10]} g6 {[%emt 0:01:08]} 17. Kf1 {
[%emt 0:02:53]} Rd6 {[%emt 0:05:04]} 18. Kg2 {[%emt 0:04:16]} Rhd8 {[%emt 0:00:
00]} 19. a4 {[%emt 0:10:00]} Nc6 {[%emt 0:07:22][%cal Ya7c6,Yc6b8,Yb8d7,Yd7c5]}
20. b4 {[%emt 0:00:00][%cal Yb2b4,Yb4b5]} a5 $1 {[%emt 0:00:00]} 21. b5 {
[%emt 0:05:39]} Nb8 {[%emt 0:00:45]} 22. c4 {[%emt 0:00:00] Hoping for Qe1.}
Nd7 {[%emt 0:03:47]} 23. Nd5 {[%emt 0:05:50]} b6 24. Rhd1 {[%emt 0:03:55]} Nc5
{[%emt 0:02:50]} 25. Rd2 {[%emt 0:00:00]} (25. Nd2 $11) 25... Qd7 {[%emt 0:03:
28]} 26. Ng1 {[%emt 0:02:37]} Kb7 {[%emt 0:01:31]} 27. Qe3 {[%emt 0:01:38]} Qf7
{[%emt 0:01:52]} 28. Nf3 {[%emt 0:02:58]} Bc8 {[%emt 0:01:21]} 29. Rad1 {
[%emt 0:00:50]} Ng7 {[%emt 0:04:46][%cal Yh5g7,Yg7e6,Ye6f4]} 30. Qh6 {[%emt 0:
01:51]} Nge6 {[%emt 0:00:00]} 31. Qh4 $2 {[%emt 0:00:34] White does not
recover from this.} (31. Kg1 $15) 31... h5 $19 {[%emt 0:00:08] ...g5 is the
strong threat.} 32. Qxf6 {[%emt 0:00:00] [#]} (32. g4 g5 33. Qg3 (33. Qxh5 $2
Qg7 $19)) 32... Nf4+ $1 {[%emt 0:00:00] Discovered Attack. Black is clearly
winning.} 33. gxf4 {[%emt 0:00:00]} (33. Qxf4 exf4) 33... Rxf6 {[%emt 0:00:13]}
34. Nxe5 {[%emt 0:00:44]} Qe6 {[%emt 0:01:48]} 35. Nxf6 {[%emt 0:00:30]} Rxd2 {
[%emt 0:00:22]} 36. Rxd2 {[%emt 0:00:25]} Qxf6 {[%emt 0:00:11] Weighted Error
Value: White=0.55/Black=0.05 (flawless)} 0-1

[Event "44th Chess Olympiad Open 2022"]
[Site "Chennai"]
[Date "2022.08.02"]
[Round "5.33"]
[White "Amin, Bassem"]
[Black "Silva, David"]
[Result "1-0"]
[WhiteElo "2680"]
[BlackElo "2315"]
[Annotator "TA"]
[PlyCount "71"]
[EventDate "2022.??.??"]
[TimeControl "60"]

{[%evp 16,71,22,29,24,18,56,0,7,-18,-14,-76,27,0,0,0,2,2,2,0,5,5,50,29,95,27,
26,8,8,8,53,70,69,70,80,66,114,121,120,131,108,109,107,108,97,45,45,38,39,48,
48,62,178,178,315,353,407,385]} 1. Nf3 {[%emt 0:01:08]} d5 {[%emt 0:03:41]} 2.
c4 {[%emt 0:02:01]} c6 {[%emt 0:00:48]} 3. g3 {[%emt 0:00:30]} Nf6 {[%emt 0:00:
00]} 4. Bg2 {[%emt 0:00:06]} Bf5 {[%emt 0:00:32]} 5. cxd5 {[%emt 0:01:17]} cxd5
{[%emt 0:00:33]} 6. Qb3 {[%emt 0:00:10]} Qb6 {[%emt 0:03:04]} 7. Qxb6 {[%emt 0:
00:00]} axb6 {[%emt 0:00:02]} 8. d3 {[%emt 0:01:40]} Nc6 {[%emt 0:01:32]} 9.
Nc3 {[%emt 0:01:44]} e5 {[%emt 0:03:30] A11: English Opening: 1...c6.} 10. O-O
{[%emt 0:01:54]} h6 {[%emt 0:04:50] [#]} 11. Nh4 $5 {[%emt 0:22:12] A
promising side line.} (11. Nxd5 $1 $14 Nxd5 12. e4) 11... Be6 {[%emt 0:01:20]
The position is equal.} 12. f4 {[%emt 0:00:14] [#]} exf4 $146 {[%emt 0:01:08]}
({Predecessor:} 12... Bc5+ 13. Kh1 d4 14. Nb5 Rxa2 15. Rxa2 Bxa2 16. fxe5 Nxe5
17. Bf4 Nc6 18. Ra1 Nb4 {1-0 (44) Le Roux,J (2559)-Hasenohr,B (2141) Biel 2012}
) 13. gxf4 {[%emt 0:00:12]} (13. Rxf4 $11 Bc5+ 14. e3) 13... d4 {[%emt 0:01:21]
} (13... Bc5+ $17 14. Kh1 d4) 14. f5 $36 {[%emt 0:05:24] White fights for an
advantage.} Bb3 {[%emt 0:00:12]} 15. Nb5 {[%emt 0:01:34]} Kd7 {[%emt 0:02:23]
Prevents Nc7.} 16. Bxc6+ {[%emt 0:21:23]} bxc6 {[%emt 0:00:28]} 17. Nxd4 {
[%emt 0:00:03]} Bc5 {[%emt 0:01:42]} 18. Nhf3 {[%emt 0:00:21]} Bxa2 {[%emt 0:
03:03]} 19. Bd2 {[%emt 0:04:50]} Ra4 {[%emt 0:02:56] [#]} (19... Rhe8 $11 {
remains equal.}) 20. Bc3 {[%emt 0:03:37]} (20. Ne5+ $1 $16 Kc7 {[#]} 21. Nexc6
$1) 20... Nd5 {[%emt 0:04:31]} 21. e4 {[%emt 0:01:25]} Nxc3 {[%emt 0:00:00]}
22. bxc3 {[%emt 0:00:02]} Re8 {[%emt 0:00:33] Against Ne5+} 23. Rf2 {[%emt 0:
01:50]} Rea8 $1 {[%emt 0:04:13]} 24. Ne5+ {[%emt 0:07:44]} Ke8 {[%emt 0:00:38]
Hoping for ...Rxd4.} 25. Nexc6 {[%emt 0:02:08] White is more active.} f6 {
[%emt 0:00:11]} (25... Bb3 $14 26. Rc1 Rc8) 26. Rb2 {[%emt 0:00:00]} Bf7 {
[%emt 0:02:32]} 27. Rxa4 {[%emt 0:00:07]} Rxa4 {[%emt 0:00:03]} 28. Kg2 {
[%emt 0:01:43]} Kd7 {[%emt 0:02:16] Against Ne6} 29. Nb4 {[%emt 0:00:22] Pair
of Knights!} Ra1 {[%emt 0:01:16]} 30. Nf3 {[%emt 0:01:33]} (30. Ne2 $16) 30...
Ra3 $14 {[%emt 0:06:33]} 31. e5 {[%emt 0:00:47]} fxe5 {[%emt 0:01:22]} 32.
Nxe5+ {[%emt 0:00:10]} Ke8 {[%emt 0:00:18]} 33. c4 {[%emt 0:03:48] Threatens
to win with Nbc6.} Ra1 {[%emt 0:07:38]} ({Better is} 33... Bd4 $14 34. Re2 Bxe5
) 34. Nbc6 $18 {[%emt 0:02:14]} Ra4 {[%emt 0:06:29]} (34... Bg8 $142 35. d4 Bd6
) 35. Kf3 {[%emt 0:01:55]} h5 {[%emt 0:03:10]} 36. Ke4 {[%emt 0:00:00]
Weighted Error Value: White=0.15 (very precise) /Black=0.27 (precise)} 1-0

[Event "44th Chess Olympiad Open 2022"]
[Site "Chennai"]
[Date "2022.08.02"]
[Round "5.33"]
[White "Fawzy, Adham"]
[Black "Junior, Domingos"]
[Result "1-0"]
[WhiteElo "2471"]
[BlackElo "2107"]
[Annotator "RC"]
[PlyCount "89"]
[EventDate "2022.??.??"]
[TimeControl "60"]

1. e4 {[%emt 0:00:16]} c6 {[%emt 0:04:09]} 2. d4 {[%emt 0:03:51]} d5 {[%emt 0:
00:00]} 3. e5 {[%emt 0:00:07]} Bf5 {[%emt 0:00:07]} 4. h4 {[%emt 0:00:02]} h5 {
[%emt 0:00:07]} 5. Bd3 {[%emt 0:00:05]} Bxd3 {[%emt 0:00:22]} 6. Qxd3 {[%emt 0:
00:00]} e6 {[%emt 0:00:09]} 7. Bg5 {[%emt 0:00:05]} Qb6 {[%emt 0:10:08]} 8. Nd2
{[%emt 0:00:02]} Ne7 {[%emt 0:01:04]} 9. c4 {[%emt 0:07:51]} Nf5 {[%emt 0:00:
00]} 10. Ngf3 {[%emt 0:00:15]} dxc4 {[%emt 0:07:30]} 11. Nxc4 {[%emt 0:01:06]}
Bb4+ {[%emt 0:00:02]} 12. Ke2 {[%emt 0:03:43]} Qa6 {[%emt 0:00:18]} 13. a3 {
[%emt 0:02:45]} Be7 {[%emt 0:01:10]} 14. a4 {[%emt 0:12:49]} Nd7 {[%emt 0:00:
00]} 15. a5 {[%emt 0:08:12]} f6 {[%emt 0:13:09]} 16. Bf4 {[%emt 0:17:05]} Rd8 {
[%emt 0:05:54]} 17. exf6 {[%emt 0:06:16]} gxf6 {[%emt 0:02:45]} 18. Rhd1 {
[%emt 0:02:12]} Qb5 {[%emt 0:10:29]} 19. Ne3 {[%emt 0:04:38]} Qxb2+ {[%emt 0:
00:00]} 20. Kf1 {[%emt 0:00:30]} Nxe3+ {[%emt 0:00:02]} 21. Qxe3 {[%emt 0:00:
00]} Qb5+ {[%emt 0:00:40]} 22. Kg1 {[%emt 0:00:02]} Qd5 {[%emt 0:00:01]} 23.
Rab1 {[%emt 0:02:17]} b5 {[%emt 0:03:28]} 24. axb6 {[%emt 0:00:11]} Nxb6 {
[%emt 0:00:28]} 25. Bc7 {[%emt 0:00:49]} Nc4 {[%emt 0:01:40]} 26. Qd3 {[%emt 0:
00:00]} Rc8 {[%emt 0:02:31]} 27. Qg6+ {[%emt 0:00:40]} Kd7 {[%emt 0:01:40]} 28.
Bg3 {[%emt 0:00:34]} Nd6 {[%emt 0:01:46]} 29. Bxd6 {[%emt 0:05:20]} Qxd6 {
[%emt 0:00:05]} 30. Ne5+ {[%emt 0:00:16]} Kc7 {[%emt 0:02:03]} 31. Nf7 {
[%emt 0:00:02]} Rcg8 {[%emt 0:00:16]} 32. Rb7+ {[%emt 0:01:31]} Kxb7 {[%emt 0:
00:00]} 33. Nxd6+ {[%emt 0:00:03]} Bxd6 {[%emt 0:00:01]} 34. Rb1+ {[%emt 0:00:
00]} Ka8 {[%emt 0:02:24]} 35. Qe4 {[%emt 0:01:31]} Rc8 {[%emt 0:00:16]} 36.
Qxe6 {[%emt 0:00:02]} Bb8 {[%emt 0:00:27]} 37. d5 {[%emt 0:00:19]} Be5 {
[%emt 0:01:54]} 38. dxc6 {[%emt 0:02:13]} Rc7 {[%emt 0:00:26]} 39. Qd5 {
[%emt 0:01:04]} Rhc8 {[%emt 0:00:24]} 40. Rc1 {[%emt 0:00:04]} Rb8 {[%emt 0:00:
00]} 41. g3 {[%emt 0:30:05]} a6 {[%emt 0:00:58]} 42. f4 {[%emt 0:00:17]} Bb2 {
[%emt 0:30:03]} 43. Rc2 {[%emt 0:00:23]} Ka7 {[%emt 0:00:03]} 44. Qc5+ {
[%emt 0:00:37]} Ka8 {[%emt 0:00:15]} 45. Qd6 {[%emt 0:00:04]} 1-0

[Event "44th Chess Olympiad Open 2022"]
[Site "Chennai"]
[Date "2022.08.02"]
[Round "5.33"]
[White "Miguel, Sergio"]
[Black "Adly, Ahmed"]
[Result "0-1"]
[WhiteElo "2274"]
[BlackElo "2582"]
[Annotator "TA"]
[PlyCount "80"]
[EventDate "2022.??.??"]
[TimeControl "60"]

{[%evp 10,80,47,43,46,45,50,15,25,16,32,0,0,0,0,-16,0,-15,0,0,31,-78,-57,-67,
-64,-49,-66,-43,-63,-63,-53,-144,-160,-147,-126,-145,-138,-124,-101,-124,-136,
-122,-33,-219,-177,-196,-10,-24,0,0,0,0,0,0,0,-55,-41,-673,-672,-5385,-5397,
-5306,-4728,-2304,-1522,-6295,-5891,-5434,-1502,-29982,-29983,-29977,-29952]} 
1. e4 {[%emt 0:00:05][%cal Ye2e4,Ye4e5]} c5 {[%emt 0:01:20]} 2. Nf3 {[%emt 0:
00:08]} Nf6 {[%emt 0:00:05]} 3. e5 {[%emt 0:00:40]} Nd5 {[%emt 0:00:03]} 4. Nc3
{[%emt 0:00:38]} Nxc3 {[%emt 0:00:03]} 5. dxc3 {[%emt 0:00:08]} Nc6 {[%emt 0:
00:07]} 6. Bf4 {[%emt 0:00:23]} Qc7 {[%emt 0:00:18] B29: Sicilian: 2 Nf3 Nf6 
(Nimzowitsch Variation).} 7. Qd2 {[%emt 0:00:30][%cal Ye5e6]} e6 $1 {[%emt 0:
00:06]} 8. O-O-O {[%emt 0:02:31]} h6 {[%emt 0:00:09] The position is equal.} 9.
h4 {[%emt 0:03:26]} Rb8 $5 {[%emt 0:00:03][%cal Ya8b8,Yb8b6,Yb6a6,Ya6a4] [#] A
promising side line.} 10. h5 $146 {[%emt 0:05:31]} ({Predecessor:} 10. Qe3 b5
11. Nd2 Qa5 12. a3 b4 13. Nc4 Qc7 14. cxb4 cxb4 15. Nd6+ Bxd6 16. Rxd6 {
0-1 (55) Iordachescu,V (2585)-Adly,A (2596) Sharjah 2022}) 10... b5 {[%emt 0:
00:10]} 11. Rh4 {[%emt 0:07:36]} c4 {[%emt 0:03:39]} 12. Bg3 {[%emt 0:00:41]}
Qa5 {[%emt 0:03:49]} 13. Kb1 {[%emt 0:01:25]} Rb6 {[%emt 0:00:00]} 14. Qc1 {
[%emt 0:05:13]} b4 {[%emt 0:04:21]} 15. cxb4 {[%emt 0:00:26]} (15. Nd2 $1 $14
Ba6 16. Nxc4 Bxc4 17. Rxc4 (17. Bxc4 bxc3 18. b3 Be7 $11)) 15... Nxb4 $17 {
[%emt 0:00:03][%csl Gb4][%cal Ra5a2]} 16. Bxc4 {[%emt 0:06:40] [#]} Nxa2 {
[%emt 0:03:50]} 17. Bxa2 {[%emt 0:04:59]} Ra6 $40 {[%emt 0:00:03][%csl Ga6]
[%cal Ra5a2] White needs to defend precisely.} 18. c3 {[%emt 0:00:00]} Qxa2+ {
[%emt 0:00:04]} 19. Kc2 {[%emt 0:00:09]} Bb7 {[%emt 0:00:01]} 20. Rd2 {[%emt 0:
15:02]} ({Much worse is} 20. Qd2 Bd5 21. Kd3 Qb3 $17) (20. Qb1 $15) 20... Be7 {
[%emt 0:03:49] Strongly threatening ...Bxf3.} 21. Rg4 {[%emt 0:00:00]} Ra4 {
[%emt 0:09:48]} 22. Rdd4 {[%emt 0:04:23]} Rxd4 {[%emt 0:03:02]} 23. Nxd4 {
[%emt 0:00:52]} Bxg2 {[%emt 0:02:04] This bishop pair is nice.} 24. Bh4 {
[%emt 0:05:51]} Bxh4 {[%emt 0:10:15]} 25. Rxh4 {[%emt 0:01:14]} Qa4+ {[%emt 0:
01:22]} (25... Bd5 $17 {...0-0 is the strong threat.} 26. Rg4 g5 27. hxg6 fxg6)
26. Kd3 $2 {[%emt 0:00:51]} ({White has to play} 26. Kd2 $15 Bd5 27. Qg1) 26...
Bb7 {[%emt 0:09:06][%cal Yg2b7,Yb7a6,Ya6d3]} ({Stronger than} 26... Bd5 27. c4
Bb7 28. Rg4 $17) 27. Qg1 {[%emt 0:03:48]} Rg8 {[%emt 0:00:00]} (27... O-O $19 {
Threatens to win with ...Qa2.} 28. Rg4 Kh8 29. Rxg7 d6 30. exd6 Qa6+ 31. c4
Qxd6) 28. Rg4 $1 $11 {[%emt 0:00:41]} Ba6+ {[%emt 0:00:07]} 29. Kd2 {[%emt 0:
02:39]} Qc4 {[%emt 0:00:40]} 30. Qg3 {[%emt 0:03:32] Prevents Qd3+.} Qf1 {
[%emt 0:06:20]} 31. Qf3 {[%emt 0:01:14] And now Qa8+ would win.} Ke7 {[%emt 0:
00:02]} 32. Kc2 {[%emt 0:01:26]} (32. Qe3 $11) 32... Rb8 $1 $15 {[%emt 0:05:45]
[%cal Ya6d3] Chess con chili.} 33. Rxg7 $4 {[%emt 0:00:00] [#]} (33. b4 $15)
33... Bd3+ $1 $19 {[%emt 0:00:13]} 34. Kd2 {[%emt 0:00:01]} (34. Qxd3 Rxb2+)
34... Rxb2+ {[%emt 0:00:05]} 35. Ke3 {[%emt 0:00:42]} Bf5 $1 {[%emt 0:00:19]}
36. Nxf5+ {[%emt 0:05:25]} exf5 {[%emt 0:00:05]} 37. Rxf7+ {[%emt 0:10:50]}
Kxf7 {[%emt 0:00:05]} 38. Qd5+ {[%emt 0:00:05]} Ke7 {[%emt 0:01:35] ( -> ...
Qe1+)} 39. Qd6+ {[%emt 0:01:07]} Ke8 {[%emt 0:00:18]} 40. Qg6+ {[%emt 0:01:45]}
Kd8 {[%emt 0:00:02] Weighted Error Value: White=0.88/Black=0.44} 0-1

[Event "44th Chess Olympiad Open 2022"]
[Site "Chennai"]
[Date "2022.08.02"]
[Round "5.33"]
[White "Lutuima, Amaro"]
[Black "Wageih, Kareim"]
[Result "0-1"]
[WhiteElo "2048"]
[BlackElo "2387"]
[Annotator "RC"]
[PlyCount "76"]
[EventDate "2022.??.??"]
[TimeControl "60"]

1. e4 {[%emt 0:02:03]} c5 {[%emt 0:00:50]} 2. Nf3 {[%emt 0:00:37]} e6 {[%emt 0:
00:00]} 3. d4 {[%emt 0:00:35]} cxd4 {[%emt 0:00:04]} 4. Nxd4 {[%emt 0:00:05]}
Nc6 {[%emt 0:00:04]} 5. Nxc6 {[%emt 0:01:07]} bxc6 {[%emt 0:00:04]} 6. Bd3 {
[%emt 0:00:01]} Nf6 {[%emt 0:00:16]} 7. O-O {[%emt 0:00:18]} d5 {[%emt 0:00:05]
} 8. Nd2 {[%emt 0:00:06]} Qc7 {[%emt 0:01:05]} 9. Qe2 {[%emt 0:01:15]} Bd6 {
[%emt 0:00:55]} 10. h3 {[%emt 0:02:24]} O-O {[%emt 0:04:37]} 11. Re1 {[%emt 0:
00:00]} e5 {[%emt 0:01:29]} 12. c4 {[%emt 0:00:17]} d4 {[%emt 0:05:21]} 13. Nf1
{[%emt 0:01:46]} Nd7 {[%emt 0:01:00]} 14. Bd2 {[%emt 0:02:01]} a5 {[%emt 0:00:
00]} 15. Rad1 {[%emt 0:01:41]} Rb8 {[%emt 0:08:45]} 16. Rb1 {[%emt 0:05:32]}
Bb4 {[%emt 0:07:30]} 17. a3 {[%emt 0:00:49]} Bxd2 {[%emt 0:00:19]} 18. Nxd2 {
[%emt 0:00:25]} Nc5 {[%emt 0:00:36]} 19. b4 {[%emt 0:03:09]} Na4 {[%emt 0:00:
00]} 20. Qf3 {[%emt 0:01:14]} Nc3 {[%emt 0:02:18]} 21. Rb2 {[%emt 0:02:21]}
axb4 {[%emt 0:01:33]} 22. axb4 {[%emt 0:00:12]} Qa7 {[%emt 0:04:23]} 23. c5 {
[%emt 0:02:50]} Be6 {[%emt 0:01:58]} 24. Qg3 {[%emt 0:06:34]} Qa3 {[%emt 0:00:
00]} 25. Rc2 {[%emt 0:00:22]} Rfe8 {[%emt 0:08:55]} 26. f4 {[%emt 0:01:22]}
exf4 {[%emt 0:03:19]} 27. Qxf4 {[%emt 0:00:09]} Na2 {[%emt 0:06:22]} 28. Bc4 {
[%emt 0:02:00]} Nxb4 {[%emt 0:00:51]} 29. Bxe6 {[%emt 0:00:32]} fxe6 {[%emt 0:
00:00]} 30. Nb1 {[%emt 0:10:05]} Qa7 {[%emt 0:05:09]} 31. Qd2 {[%emt 0:03:20]}
Nxc2 {[%emt 0:00:32]} 32. Qxc2 {[%emt 0:00:02]} Rb5 {[%emt 0:01:19]} 33. Rc1 {
[%emt 0:01:13]} Reb8 {[%emt 0:01:17]} 34. Nd2 {[%emt 0:00:26]} Rb2 {[%emt 0:00:
00]} 35. Qd3 {[%emt 0:02:31]} Qa2 {[%emt 0:00:49]} 36. Qg3 {[%emt 0:07:10]} Rf8
{[%emt 0:02:25]} 37. Nf3 {[%emt 0:05:14]} Rb1 {[%emt 0:01:43]} 38. Re1 {
[%emt 0:03:22]} d3 {[%emt 0:14:27]} 0-1

[Event "44th Chess Olympiad Open 2022"]
[Site "Chennai"]
[Date "2022.08.02"]
[Round "5.34"]
[White "O`Gorman, Tom"]
[Black "Zhemba, Jemusse"]
[Result "1/2-1/2"]
[WhiteElo "2401"]
[BlackElo "2162"]
[Annotator "RC"]
[PlyCount "148"]
[EventDate "2022.??.??"]
[TimeControl "60"]

1. e4 {[%emt 0:00:09]} e5 {[%emt 0:00:05]} 2. Nf3 {[%emt 0:00:06]} Nc6 {
[%emt 0:00:07]} 3. Bb5 {[%emt 0:00:09]} a6 {[%emt 0:00:14]} 4. Ba4 {[%emt 0:00:
00]} Nf6 {[%emt 0:00:12]} 5. O-O {[%emt 0:00:10]} Be7 {[%emt 0:00:06]} 6. Re1 {
[%emt 0:00:07]} b5 {[%emt 0:00:07]} 7. Bb3 {[%emt 0:00:10]} O-O {[%emt 0:00:15]
} 8. h3 {[%emt 0:00:27]} Bb7 {[%emt 0:00:56]} 9. d3 {[%emt 0:00:12]} Re8 {
[%emt 0:00:33]} 10. Nc3 {[%emt 0:06:04]} h6 {[%emt 0:02:45]} 11. a4 {[%emt 0:
00:00]} b4 {[%emt 0:01:48]} 12. Nd5 {[%emt 0:00:26]} Bf8 {[%emt 0:00:05]} 13.
c3 {[%emt 0:07:43]} Rb8 {[%emt 0:05:12]} 14. a5 {[%emt 0:02:14]} d6 {[%emt 0:
00:00]} 15. Bd2 {[%emt 0:05:47]} Nxd5 {[%emt 0:05:38]} 16. Bxd5 {[%emt 0:00:55]
} Nxa5 {[%emt 0:04:43]} 17. cxb4 {[%emt 0:03:52]} Nc6 {[%emt 0:07:48]} 18. Qa4
{[%emt 0:03:11]} Na7 {[%emt 0:02:09]} 19. Bxb7 {[%emt 0:01:29]} Rxb7 {[%emt 0:
00:00]} 20. Qxa6 {[%emt 0:00:11]} Qb8 {[%emt 0:00:08]} 21. Rec1 {[%emt 0:08:56]
} Nb5 {[%emt 0:01:31]} 22. Qc6 {[%emt 0:04:36]} Rb6 {[%emt 0:02:05]} 23. Qc4 {
[%emt 0:01:40]} Qc8 {[%emt 0:10:14]} 24. Be3 {[%emt 0:06:35]} Rb8 {[%emt 0:00:
00]} 25. Nd2 {[%emt 0:01:05]} Re6 {[%emt 0:04:11]} 26. Nb1 {[%emt 0:02:07]} Rg6
{[%emt 0:00:57]} 27. Kh2 {[%emt 0:00:35]} d5 {[%emt 0:09:32]} 28. exd5 {
[%emt 0:01:45]} Bd6 {[%emt 0:04:52]} 29. Kh1 {[%emt 0:06:44]} Nd4 {[%emt 0:00:
00]} 30. Ra4 {[%emt 0:07:43]} Qf5 {[%emt 0:00:05]} 31. Bxd4 {[%emt 0:04:00]}
exd4 {[%emt 0:01:06]} 32. Qxd4 {[%emt 0:01:04]} Rxg2 {[%emt 0:00:26]} 33. Kxg2
{[%emt 0:01:59]} Qg5+ {[%emt 0:00:41]} 34. Qg4 {[%emt 0:00:06]} Qxc1 {[%emt 0:
00:00]} 35. Nc3 {[%emt 0:00:16]} Qxb2 {[%emt 0:03:34]} 36. Ne4 {[%emt 0:00:38]}
Qb3 {[%emt 0:00:43]} 37. Ra7 {[%emt 0:07:23]} Qxd5 {[%emt 0:01:11]} 38. Qf3 {
[%emt 0:01:10]} Qd4 {[%emt 0:01:35]} 39. Ra5 {[%emt 0:00:42]} Bxb4 {[%emt 0:00:
00]} 40. Rd5 {[%emt 0:01:08]} Qa1 {[%emt 0:00:15]} 41. Rd7 {[%emt 0:31:05]} Rf8
{[%emt 0:31:56]} 42. Rxc7 {[%emt 0:00:44]} Qe5 {[%emt 0:01:11]} 43. Rd7 {
[%emt 0:05:32]} f5 {[%emt 0:02:57]} 44. Ng3 {[%emt 0:01:34]} Bd6 {[%emt 0:00:
00]} 45. d4 {[%emt 0:00:00]} Qe6 {[%emt 0:00:00]} 46. Qb7 {[%emt 0:00:00]} Rf7
{[%emt 0:00:00]} 47. Rxf7 {[%emt 0:00:00]} Qxf7 {[%emt 0:00:00]} 48. Qxf7+ {
[%emt 0:00:00]} Kxf7 {[%emt 0:00:00]} 49. Nxf5 {[%emt 0:00:00]} Bf8 {[%emt 0:
00:00]} 50. Kf3 {[%emt 0:00:00]} g6 {[%emt 0:00:00]} 51. Ne3 {[%emt 0:00:00]}
Ke6 {[%emt 0:00:00]} 52. Ke4 {[%emt 0:00:00]} Bb4 {[%emt 0:00:00]} 53. Ng4 {
[%emt 0:00:00]} h5 {[%emt 0:01:32]} 54. Ne5 {[%emt 0:00:00]} Kf6 {[%emt 0:00:
00]} 55. f3 {[%emt 0:00:00]} Bc3 {[%emt 0:00:00]} 56. Nd3 {[%emt 0:00:00]} Kg5
{[%emt 0:00:00]} 57. Nf4 {[%emt 0:00:00]} Kh4 {[%emt 0:00:00]} 58. Nxg6+ {
[%emt 0:00:00]} Kxh3 {[%emt 0:00:00]} 59. f4 {[%emt 0:00:00]} Kg4 {[%emt 0:00:
00]} 60. f5 {[%emt 0:00:00]} h4 {[%emt 0:00:00]} 61. Ne5+ {[%emt 0:03:05]} Kh5
{[%emt 0:00:00]} 62. f6 {[%emt 0:02:43]} h3 {[%emt 0:00:44]} 63. f7 {[%emt 0:
00:00]} Bb4 {[%emt 0:00:52]} 64. Kf3 {[%emt 0:01:19]} Kh6 {[%emt 0:02:03]} 65.
Nc6 {[%emt 0:02:22]} h2 {[%emt 0:00:38]} 66. Kg2 {[%emt 0:00:08]} Bd6 {[%emt 0:
00:00]} 67. Nd8 {[%emt 0:00:25]} Kg7 {[%emt 0:00:38]} 68. d5 {[%emt 0:00:18]}
Be7 {[%emt 0:01:01]} 69. Nc6 {[%emt 0:00:17]} Bd6 {[%emt 0:00:17]} 70. Nd8 {
[%emt 0:00:20]} Be7 {[%emt 0:00:16]} 71. Nb7 {[%emt 0:00:42]} Kxf7 {[%emt 0:00:
00]} 72. d6 {[%emt 0:00:04]} h1=Q+ {[%emt 0:00:15]} 73. Kxh1 {[%emt 0:00:05]}
Bxd6 {[%emt 0:00:08]} 74. Nxd6+ {[%emt 0:00:03]} Kf8 {[%emt 0:00:06]} 1/2-1/2

[Event "44th Chess Olympiad Open 2022"]
[Site "Chennai"]
[Date "2022.08.02"]
[Round "5.34"]
[White "Baburin, Alexander"]
[Black "Makoto, Rodwell"]
[Result "1/2-1/2"]
[WhiteElo "2400"]
[BlackElo "2346"]
[Annotator "RC"]
[PlyCount "83"]
[EventDate "2022.??.??"]
[TimeControl "60"]

1. d4 {[%emt 0:00:02]} Nf6 {[%emt 0:01:51]} 2. c4 {[%emt 0:00:30]} g6 {[%emt 0:
00:00]} 3. Nf3 {[%emt 0:00:07]} Bg7 {[%emt 0:00:06]} 4. g3 {[%emt 0:00:05]} O-O
{[%emt 0:00:19]} 5. Bg2 {[%emt 0:00:05]} d6 {[%emt 0:00:18]} 6. O-O {[%emt 0:
00:00]} Nbd7 {[%emt 0:00:12]} 7. Nc3 {[%emt 0:01:22]} c6 {[%emt 0:00:17]} 8. e4
{[%emt 0:01:04]} e5 {[%emt 0:00:14]} 9. h3 {[%emt 0:03:26]} Re8 {[%emt 0:02:22]
} 10. b3 {[%emt 0:08:22]} exd4 {[%emt 0:05:02]} 11. Nxd4 {[%emt 0:05:42]} Nc5 {
[%emt 0:00:27]} 12. Re1 {[%emt 0:01:15]} a5 {[%emt 0:00:48]} 13. Rb1 {[%emt 0:
00:00]} Qe7 {[%emt 0:10:07]} 14. Bf4 {[%emt 0:06:07]} Nfd7 {[%emt 0:10:47]} 15.
Be3 {[%emt 0:12:10]} Ne5 {[%emt 0:11:11]} 16. Re2 {[%emt 0:03:26]} Ne6 {
[%emt 0:08:01]} 17. f4 {[%emt 0:05:45]} Nxd4 {[%emt 0:05:02]} 18. Bxd4 {
[%emt 0:00:25]} c5 {[%emt 0:03:35]} 19. Nd5 {[%emt 0:03:22]} Qd8 {[%emt 0:00:
00]} 20. Bc3 {[%emt 0:03:26]} Nc6 {[%emt 0:00:36]} 21. Bxg7 {[%emt 0:01:07]}
Kxg7 {[%emt 0:02:33]} 22. f5 {[%emt 0:07:49]} gxf5 {[%emt 0:06:55]} 23. Rf2 {
[%emt 0:05:31]} Re5 {[%emt 0:03:49]} 24. Qh5 {[%emt 0:06:49]} f4 {[%emt 0:00:
00]} 25. Qf3 {[%emt 0:00:30]} Nd4 {[%emt 0:11:44]} 26. Qxf4 {[%emt 0:01:12]}
Be6 {[%emt 0:00:13]} 27. Rbf1 {[%emt 0:05:20]} Qg5 {[%emt 0:05:35]} 28. Nc7 {
[%emt 0:00:00]} Rf8 {[%emt 0:00:18]} 29. Nb5 {[%emt 0:00:00]} Nxb5 {[%emt 0:00:
00]} 30. cxb5 {[%emt 0:00:00]} c4 {[%emt 0:01:36]} 31. bxc4 {[%emt 0:00:00]}
Bxc4 {[%emt 0:00:05]} 32. Rc1 {[%emt 0:05:44]} Bxb5 {[%emt 0:01:09]} 33. Rc7 {
[%emt 0:00:05]} Qxf4 {[%emt 0:01:38]} 34. gxf4 {[%emt 0:00:09]} Rc5 {[%emt 0:
00:00]} 35. Rxb7 {[%emt 0:00:10]} Re8 {[%emt 0:01:20]} 36. Rb6 {[%emt 0:03:07]}
Bd3 {[%emt 0:01:36]} 37. Rxd6 {[%emt 0:01:44]} Bxe4 {[%emt 0:00:06]} 38. Re2 {
[%emt 0:01:12]} Rc2 {[%emt 0:02:03]} 39. Rxc2 {[%emt 0:03:27]} Bxc2 {[%emt 0:
00:00]} 40. Ra6 {[%emt 0:00:13]} a4 {[%emt 0:00:22]} 41. Kf2 {[%emt 0:31:16]}
Rd8 {[%emt 0:30:41]} 42. Bf1 {[%emt 0:04:07]} 1/2-1/2